bitfinex-derivatives/quotes_ETHF0:USTF0_20250326
["timestamp","ask_amount","ask_price","bid_price","bid_amount"]
[1743014653148,3.11708,2006.0,2005.9,2.29113]
[1743014653345,2.1202,2006.0,2005.9,2.29113]
[1743014653941,1.4107,2006.0,2005.9,2.29113]
[1743014654148,1.4107,2006.0,2005.9,43.09113]
[1743014654342,2.40758,2006.0,2005.9,43.09113]
[1743014654844,1.4107,2006.0,2005.9,43.09113]
[1743014663051,2.40758,2006.0,2005.9,43.09113]
[1743014663553,1.4107,2006.0,2005.9,43.09113]
[1743014663950,2.40758,2006.0,2005.9,43.09113]
[1743014664950,1.4107,2006.0,2005.9,43.09113]
[1743014665454,2.40758,2006.0,2005.9,43.09113]
[1743014666157,1.4107,2006.0,2005.9,43.09113]
[1743014667841,2.40758,2006.0,2005.9,43.09113]
[1743014668152,1.4107,2006.0,2005.9,43.09113]
[1743014668453,2.40758,2006.0,2005.9,43.09113]
[1743014677547,1.4107,2006.0,2005.9,43.09113]
[1743014677855,2.40758,2006.0,2005.9,43.09113]
[1743014678855,1.4107,2006.0,2005.9,43.09113]
[1743014679756,2.40758,2006.0,2005.9,43.09113]
[1743014680153,1.4107,2006.0,2005.9,43.09113]
[1743014681550,3.06428,2006.0,2005.9,43.09113]
[1743014681751,2.0674,2006.0,2005.9,43.09113]
[1743014682156,0.6567,2006.0,2005.9,43.09113]
[1743014682357,2.29474,2006.1,2006.0,0.99688]
[1743014682557,2.29474,2006.1,2006.0,2.33938]
[1743014686758,2.29474,2006.1,2005.4,2.49296]
[1743014686759,1.2979,2006.1,2005.4,2.49296]
[1743014686963,0.99708,2005.6,2005.5,2.43208]
[1743014687461,3.85558,2005.6,2005.5,2.43208]
[1743014687953,2.8585,2005.6,2005.5,2.43208]
[1743014688156,0.00746269,2005.8,2005.7,0.99703]
[1743014688561,0.00746269,2005.8,2005.7,2.32443]
[1743014688755,0.00746269,2005.8,2005.7,43.78413]
[1743014700069,0.00746269,2005.8,2005.7,44.72413]
[1743014700373,0.00746269,2005.8,2005.7,43.78413]
[1743014701271,0.7045,2006.2,2005.9,3.48916]
[1743014701466,3.2078,2006.7,2006.3,0.99674]
[1743014701664,0.6671,2006.6,2006.5,0.99664]
[1743014701865,0.6671,2006.6,2006.5,2.42614]
[1743014702568,1.66369,2006.6,2006.5,2.42614]
[1743014702875,0.6671,2006.6,2006.5,2.42614]
[1743014704574,2.0695,2006.6,2006.5,2.42614]
[1743014704777,3.06609,2006.6,2006.5,2.42614]
[1743014704977,2.0695,2006.6,2006.5,2.42614]
[1743014708679,0.7083,2006.7,2006.6,0.99659]
[1743014708883,0.7083,2006.7,2006.6,2.37759]
[1743014709373,2.11386269,2006.8,2006.7,0.99654]
[1743014709576,2.11386269,2006.8,2006.7,2.31824]
[1743014709771,0.00746269,2006.8,2006.7,3.01424]
[1743014709973,0.6494,2007.1,2007.0,0.99639]
[1743014710573,0.6494,2007.1,2007.0,2.31809]
[1743014710780,1.9973,2007.1,2007.0,2.31809]
[1743014711373,0.649,2007.2,2007.1,0.99634]
[1743014711576,0.649,2007.2,2007.1,2.31804]
[1743014712382,1.9969,2007.2,2007.1,2.31804]
[1743014713179,1.9969,2007.2,2007.1,2.6954963]
[1743014713481,0.99639,2007.0,2006.9,0.99638]
[1743014714186,1.70129,2007.0,2006.9,0.99644]
[1743014714382,0.7049,2007.0,2006.9,0.99644]
[1743014714682,0.7049,2007.0,2006.9,2.42194]
[1743014714882,2.1091,2007.0,2006.9,2.42194]
[1743014716479,3.8568,2007.2,2007.1,0.99634]
[1743014716781,4.5742,2007.2,2007.1,0.99634]
[1743014717181,4.5742,2007.2,2007.1,2.32364]
[1743014717377,6.0087,2007.2,2007.1,2.32364]
[1743014718880,2.8009,2007.2,2007.1,2.32364]
[1743014719880,1.3664,2007.2,2007.1,2.32364]
[1743014720186,0.649,2007.2,2007.1,2.32364]
[1743014721177,2.0395,2007.2,2007.1,2.32364]
[1743014723478,3.03579,2007.2,2007.1,2.32364]
[1743014723886,0.99634,2007.1,2007.0,0.99636]
[1743014724085,2.31824,2007.1,2007.0,0.99636]
[1743014724286,2.31824,2007.1,2007.0,2.32196]
[1743014724488,1.3219,2007.1,2007.0,2.32196]
[1743014725478,0.649,2007.2,2007.1,0.99634]
[1743014725678,1.9462,2007.2,2007.1,2.35014]
[1743014727983,2.94249,2007.2,2007.1,2.35014]
[1743014731295,0.99634,2007.1,2007.0,0.99635]
[1743014731592,1.3047,2007.1,2007.0,2.33335]
[1743014731781,2.94999,2007.2,2007.1,0.99634]
[1743014731983,2.94999,2007.2,2007.1,2.33334]
[1743014733081,2.94999,2007.2,2007.1,1.337]
[1743014733288,0.99634,2007.1,2007.0,0.99635]
[1743014733587,2.30104,2007.1,2007.0,2.33335]
[1743014735189,2.30104,2007.1,2006.9,0.99643]
[1743014735190,0.99639,2007.0,2006.9,0.99643]
[1743014735405,0.99638,2007.1,2007.0,0.99639]
[1743014736300,1.64529,2007.2,2007.1,0.99634]
[1743014736994,0.649,2007.2,2007.1,0.99634]
[1743014737393,0.649,2007.2,2007.1,1.64554]
[1743014737588,1.64529,2007.2,2007.1,1.64554]
[1743014739897,0.649,2007.2,2007.1,1.64554]
[1743014740102,1.64529,2007.2,2007.1,1.64554]
[1743014740999,0.649,2007.2,2007.1,1.64554]
[1743014741297,1.64529,2007.2,2007.1,1.64554]
[1743014742000,0.649,2007.2,2007.1,1.64554]
[1743014745204,0.00746269,2007.3,2007.2,0.99629]
[1743014745398,0.00746269,2007.3,2007.2,8.82999]
[1743014745596,0.00746269,2007.3,2007.2,9.48559]
[1743014745799,0.00746269,2007.3,2007.2,50.28559]
[1743014752805,2.0649,2007.6,2007.5,0.99614]
[1743014753806,2.0649,2007.6,2007.5,2.40444]
[1743014764415,2.0649,2007.6,2007.5,0.99614]
[1743014764919,3.06099,2007.6,2007.5,0.99614]
[1743014765524,2.0649,2007.6,2007.5,0.99614]
[1743014765821,2.0649,2007.6,2007.5,2.41934]
[1743014766024,3.06099,2007.6,2007.5,2.41934]
[1743014767223,2.0649,2007.6,2007.5,2.41934]
[1743014769024,3.06099,2007.6,2007.5,2.41934]
[1743014770728,0.99619,2007.4,2007.3,0.00746269]
[1743014770920,4.20399,2007.4,2007.1,0.9963]
[1743014771127,0.99634,2007.1,2006.8,50.225]
[1743014771323,2.0847,2007.0,2006.6,2.49137]
[1743014771520,0.99655,2006.8,2006.7,0.99651]
[1743014771916,2.49144,2006.7,2006.3,40.8]
[1743014772118,0.99675,2006.4,2006.3,0.9967]
[1743014772329,0.99675,2006.4,2006.3,1.00416269]
[1743014772729,2.37015,2006.4,2006.3,1.00416269]
[1743014774238,3.02405,2006.4,2006.3,1.00416269]
[1743014774542,1.71531269,2006.7,2006.3,0.00746269]
[1743014774734,1.4159,2006.6,2006.5,0.99664]
[1743014774938,1.4159,2006.6,2006.5,2.42444]
[1743014776841,1.37266269,2006.7,2006.6,0.99659]
[1743014777140,2.36920269,2006.7,2006.6,0.99659]
[1743014777541,1.37266269,2006.7,2006.6,0.99659]
[1743014778043,2.76556269,2006.7,2006.6,0.99659]
[1743014779228,3.76210269,2006.7,2006.6,0.99659]
[1743014781633,2.76556269,2006.7,2006.6,0.99659]
[1743014781830,0.99659,2006.6,2006.5,2.4244]
[1743014782041,2.35149,2006.6,2006.5,2.4244]
[1743014782237,2.36922269,2006.7,2006.6,0.99659]
[1743014782843,1.37266269,2006.7,2006.6,0.99659]
[1743014783050,0.66136269,2006.7,2006.6,0.99659]
[1743014783238,0.00746269,2006.7,2006.6,1.70879]
[1743014783436,0.00746269,2006.7,2006.6,3.05229]
[1743014784641,0.00746269,2006.7,2006.6,6.31729]
[1743014789750,0.00746269,2006.7,2006.6,6.99049]
[1743014791154,1.00400269,2006.7,2006.6,6.99049]
[1743014792051,0.00746269,2006.7,2006.6,6.99049]
[1743014792445,0.6862,2007.1,2007.0,0.99639]
[1743014793355,0.6862,2007.1,2007.0,2.37379]
[1743014796357,1.68254,2007.1,2007.0,2.37379]
[1743014796757,3.05504,2007.1,2007.0,2.37379]
[1743014797148,2.0587,2007.1,2007.0,2.37379]
[1743014797847,0.99639,2007.0,2006.9,0.9964]
[1743014798051,0.99649,2006.9,2006.8,2.34595]
[1743014798253,1.68609,2006.9,2006.8,2.34595]
[1743014798456,3.10919,2006.9,2006.8,1.3495]
[1743014799059,3.10919,2006.9,2006.8,2.34599]
[1743014800153,2.1127,2006.9,2006.8,2.34599]
[1743014800553,4.20422,2007.0,2006.9,0.99644]
[1743014800761,2.33497,2007.1,2007.0,0.99639]
[1743014804459,1.3386,2007.1,2007.0,0.99639]
[1743014804761,1.3386,2007.1,2007.0,1.67399]
[1743014804762,2.33494,2007.1,2007.0,1.67399]
[1743014804952,3.76584,2007.1,2007.0,1.67399]
[1743014805152,3.76584,2007.1,2007.0,3.10999]
[1743014805352,2.7695,2007.1,2007.0,3.10999]
[1743014805560,3.76584,2007.1,2007.0,3.10999]
[1743014805861,3.76584,2007.1,2007.0,2.43239]
[1743014808457,0.6862,2007.1,2007.0,2.43239]
[1743014810155,0.00746269,2007.3,2007.2,0.99629]
[1743014810461,0.00746269,2007.3,2007.2,7.46809]
[1743014810663,5.07385,2007.7,2007.6,0.99609]
[1743014810866,4.0778,2007.7,2007.6,0.99609]
[1743014811162,5.07384,2007.7,2007.6,0.99609]
[1743014811563,4.0778,2007.7,2007.6,2.38499]
[1743014811956,5.07384,2007.7,2007.6,2.38499]
[1743014812162,4.0778,2007.7,2007.6,2.38499]
[1743014812469,2.0136,2007.7,2007.6,2.38499]
[1743014814561,3.00964,2007.7,2007.6,1.3889]
[1743014814864,3.00964,2007.7,2007.6,2.38499]
[1743014814865,4.30294,2007.7,2007.6,2.38499]
[1743014817259,2.0136,2007.7,2007.6,2.38499]
[1743014817465,3.00964,2007.7,2007.6,2.38499]
[1743014817663,3.00964,2007.7,2007.6,1.3889]
[1743014818056,4.33064,2007.7,2007.6,1.3889]
[1743014819966,0.99614,2007.5,2007.4,1.32036269]
[1743014820168,0.99614,2007.5,2007.4,2.31655269]
[1743014820471,0.99614,2007.5,2007.4,1.32036269]
[1743014820655,2.36054,2007.5,2007.4,1.32036269]
[1743014820858,2.36054,2007.5,2007.4,0.00746269]
[1743014821054,5.62254,2007.5,2007.4,0.00746269]
[1743014821258,0.99634,2007.1,2007.0,0.99636]
[1743014821463,0.99634,2007.1,2007.0,2.30926]
[1743014822260,2.37734,2007.1,2007.0,2.30926]
[1743014822964,2.37734,2007.1,2007.0,1.3129]
[1743014823166,2.37734,2007.1,2007.0,2.30929]
[1743014823363,2.37734,2007.1,2007.0,1.3129]
[1743014823567,0.99644,2006.9,2006.8,0.00746269]
[1743014823771,0.99644,2006.9,2006.8,1.34816269]
[1743014824269,1.68994,2006.9,2006.8,1.34816269]
[1743014824572,1.68994,2006.9,2006.8,2.34465269]
[1743014824869,1.68994,2006.9,2006.8,1.34816269]
[1743014826059,3.07574,2006.9,2006.8,1.34816269]
[1743014826667,3.74744,2006.9,2006.8,1.34816269]
[1743014826974,3.74744,2006.9,2006.8,0.00746269]
[1743014832966,7.01044,2006.9,2006.8,0.00746269]
[1743014833774,0.99669,2006.4,2006.3,3.2078]
[1743014833978,0.99669,2006.4,2006.3,4.20454]
[1743014835273,0.99669,2006.4,2006.3,5.59054]
[1743014835878,2.35669,2006.4,2006.3,5.59054]
[1743014836078,2.35669,2006.4,2006.3,4.5938]
[1743014836778,2.35669,2006.4,2006.3,5.59054]
[1743014836975,3.06269,2006.4,2006.3,4.5938]
[1743014837279,3.06269,2006.4,2006.3,2.38274]
[1743014837775,0.99669,2006.4,2006.3,2.38274]
[1743014844981,2.31099,2006.4,2006.3,2.38274]
[1743014846482,2.31099,2006.4,2006.3,1.386]
[1743014846686,2.31099,2006.4,2006.3,2.38274]
[1743014847685,0.6681,2006.5,2006.4,0.99669]
[1743014847987,0.00746269,2006.6,2006.5,0.99664]
[1743014848286,0.00746269,2006.6,2006.5,3.65704]
[1743014848491,4.21185269,2006.6,2006.5,1.3095]
[1743014848984,0.99678,2006.2,2006.1,0.00746269]
[1743014849183,7.46758,2006.2,2006.1,0.00746269]
[1743014849385,9.96758,2006.2,2006.1,0.00746269]
[1743014849890,11.31158,2006.2,2006.1,0.00746269]
[1743014850090,8.81158,2006.2,2006.1,0.00746269]
[1743014850475,8.81158,2006.2,2006.1,1.43036269]
[1743014850685,3.2078,2006.2,2006.1,2.42719269]
[1743014851186,1.65037,2006.3,2006.2,0.99678]
[1743014851187,0.99677,2006.3,2006.2,0.99678]
[1743014851383,0.99677,2006.3,2006.2,1.4229]
[1743014851587,4.95832,2006.4,2006.2,1.4229]
[1743014851786,0.99674,2006.3,2006.2,2.41967]
[1743014852383,0.99674,2006.3,2006.2,1.4229]
[1743014852787,2.38954,2006.3,2006.2,1.4229]
[1743014853387,2.38954,2006.3,2006.1,0.00746269]
[1743014853594,5.59738,2006.2,2006.1,0.00746269]
[1743014854092,8.09738,2006.2,2006.1,0.00746269]
[1743014854491,5.59738,2006.2,2006.1,0.00746269]
[1743014855092,8.86038,2006.2,2006.1,0.00746269]
[1743014856894,11.36038,2006.2,2006.1,0.00746269]
[1743014857192,11.36038,2006.2,2006.1,2.69e-06]
[1743014858584,17.19038,2006.2,2006.1,2.69e-06]
[1743014858789,18.12924638,2006.2,2006.1,2.69e-06]
[1743014859890,17.19038,2006.2,2006.1,2.69e-06]
[1743014860599,18.1025707,2006.2,2006.1,2.69e-06]
[1743014860987,19.04078148,2006.2,2006.1,2.69e-06]
[1743014862295,0.99738,2005.0,2004.9,0.99739]
[1743014862496,0.99738,2005.0,2004.9,2.32709]
[1743014862693,3.2078,2005.1,2005.0,0.99738]
[1743014862992,3.2078,2005.4,2005.3,0.99723]
[1743014863598,4.20498,2005.4,2005.3,0.99723]
[1743014863796,3.2078,2005.4,2005.3,0.99723]
[1743014863997,3.2078,2005.4,2005.3,2.32693]
[1743014864299,1.00459148,2005.6,2005.5,0.99713]
[1743014864890,0.00748148,2005.6,2005.5,0.99713]
[1743014865492,0.00748148,2005.6,2005.5,5.61173]
[1743014865899,0.00748148,2005.6,2005.5,2.34773]
[1743014866095,4.21236148,2005.6,2005.5,2.34773]
[1743014866297,4.21236148,2005.6,2005.5,1.3506]
[1743014866500,4.21236148,2005.6,2005.5,2.34773]
[1743014866699,4.21236148,2005.6,2005.5,1.3506]
[1743014867904,5.58866148,2005.6,2005.5,1.3506]
[1743014869700,0.99728,2005.2,2005.1,1.32898148]
[1743014869895,0.99728,2005.2,2005.1,2.64888148]
[1743014870294,0.99728,2005.2,2005.1,3.64621148]
[1743014871501,0.99728,2005.2,2005.1,2.64888148]
[1743014871701,0.99728,2005.2,2005.1,1.32738148]
[1743014872009,2.37498,2005.2,2005.1,1.32738148]
[1743014880415,5.63898,2005.2,2005.1,0.00748148]
[1743014883110,5.63898,2005.2,2005.1,1.42718148]
[1743014883111,4.26128,2005.2,2005.1,1.42718148]
[1743014883410,4.26128,2005.2,2005.1,2.42451148]
[1743014883411,0.99728,2005.2,2005.1,2.42451148]
[1743014883805,0.99721,2005.4,2005.3,0.99723]
[1743014884011,0.99718,2005.5,2005.4,0.99713]
[1743014884215,0.99718,2005.5,2005.4,1.67663]
[1743014884915,0.00748148,2005.6,2005.5,0.99713]
[1743014885406,0.99697,2005.9,2005.8,0.99698]
[1743014886416,0.99706,2005.8,2005.7,0.997]
[1743014888019,0.9969,2006.0,2005.9,0.99693]
[1743014889226,0.99712,2005.6,2005.5,0.99708]
[1743014889516,0.99712,2005.6,2005.5,1.70728]
[1743014889915,0.99706,2005.7,2005.6,0.99708]
[1743014890920,0.99702,2005.8,2005.7,0.99699]
[1743014891419,0.99708,2005.7,2005.6,0.99705]
[1743014891807,0.99701,2005.8,2005.7,0.99698]
[1743014892412,0.99697,2005.9,2005.8,0.99693]
[1743014895022,4.2047,2006.0,2005.9,0.99693]
[1743014896622,0.00748148,2006.1,2006.0,0.99688]
[1743014896919,0.00748148,2006.1,2006.0,1.66998]
[1743014899425,0.99667,2006.5,2006.4,0.99669]
[1743014899919,0.6734,2006.6,2006.4,0.99669]
[1743014900125,0.99661,2006.6,2006.5,2.34434]
[1743014901719,0.99661,2006.6,2006.5,1.3477]
[1743014902023,2.37131,2006.6,2006.5,1.3477]
[1743014902529,0.99669,2006.4,2006.3,0.00748148]
[1743014902719,4.20449,2006.4,2006.3,1.42008148]
[1743014903224,5.57919,2006.4,2006.3,1.42008148]
[1743014904929,5.57919,2006.4,2006.3,2.41682148]
[1743014905929,4.20449,2006.4,2006.3,2.41682148]
[1743014906130,4.20449,2006.4,2006.3,1.42008148]
[1743014906527,5.59789,2006.4,2006.3,0.00748148]
[1743014907822,4.9837,2006.3,2005.3,46.50077]
[1743014908023,0.99718,2005.5,2005.4,3.74857]
[1743014908529,0.99718,2005.5,2005.4,3.08867]
[1743014908734,2.42238,2005.5,2005.4,3.08867]
[1743014909225,2.42238,2005.5,2005.4,1.4144]
[1743014910227,0.99718,2005.5,2005.4,2.41158]
[1743014910434,3.8562,2005.6,2005.5,0.99713]
[1743014910731,3.2078,2005.6,2005.5,2.39863]
[1743014911332,4.20488,2005.6,2005.5,2.39863]
[1743014911743,5.62338,2005.6,2005.5,1.4015]
[1743014911936,6.27408,2005.6,2005.5,1.4015]
[1743014913537,4.20488,2005.6,2005.5,1.4015]
[1743014913733,6.27328,2005.6,2005.5,1.4015]
[1743014914041,0.99723,2005.3,2005.2,0.00748148]
[1743014914239,4.20503,2005.3,2005.2,1.00476148]
[1743014914738,4.20503,2005.3,2005.2,0.00748148]
[1743014915434,4.20503,2005.3,2005.2,1.38038148]
[1743014916036,5.60183,2005.3,2005.2,1.38038148]
[1743014917738,5.60183,2005.3,2005.2,0.00748148]
[1743014917936,0.99733,2005.1,2005.0,1.3753]
[1743014918135,0.99748,2004.8,2004.7,0.6739]
[1743014918337,0.99748,2004.8,2004.7,0.9975]
[1743014918533,0.99748,2004.8,2004.6,0.6551]
[1743014918534,0.99753,2004.7,2004.6,1.65265]
[1743014918937,0.99753,2004.7,2004.6,0.99755]
[1743014919251,0.99758,2004.6,2004.5,1.6945]
[1743014919428,0.99758,2004.6,2004.5,3.1154]
[1743014920640,0.99758,2004.6,2004.5,2.1178]
[1743014920833,0.99758,2004.6,2004.5,1.4209]
[1743014921041,2.33988,2004.6,2004.5,1.4209]
[1743014921234,2.33988,2004.6,2004.5,2.41853]
[1743014922043,2.33988,2004.6,2004.5,1.4209]
[1743014922944,2.33988,2004.6,2004.5,2.41853]
[1743014923650,1.6772,2004.8,2004.7,0.99753]
[1743014923849,1.6772,2004.8,2004.4,2.50162148]
[1743014923850,0.99753,2004.7,2004.6,3.05235]
[1743014924350,0.99753,2004.7,2004.6,1.3671]
[1743014924746,0.99753,2004.7,2004.4,1.00512148]
[1743014924747,0.99763,2004.5,2004.4,0.00748148]
[1743014924945,4.27463,2004.5,2004.4,0.00748148]
[1743014925547,5.59083,2004.5,2004.4,0.00748148]
[1743014928138,5.58783,2004.5,2004.4,0.00748148]
[1743014929253,5.58683,2004.5,2004.4,0.00748148]
[1743014929647,2.31383,2004.5,2004.4,0.00748148]
[1743014930044,5.58583,2004.5,2004.4,0.00748148]
[1743014931846,5.58583,2004.5,2004.4,1.36758148]
[1743014932048,5.58583,2004.5,2004.4,0.00748148]
[1743014932846,4.5882,2004.5,2003.8,0.99791]
[1743014933048,0.99788,2004.0,2003.9,2.35803]
[1743014933447,0.99779,2004.3,2004.2,0.99774]
[1743014933752,0.99778,2004.2,2004.1,3.04808]
[1743014935051,0.99778,2004.2,2004.1,2.0503]
[1743014935648,0.99778,2004.2,2004.1,1.3601]
[1743014935850,1.64918,2004.2,2004.1,1.3601]
[1743014936056,2.35278,2004.2,2004.1,1.3601]
[1743014940157,2.35278,2004.2,2004.1,2.35793]
[1743014940555,2.35278,2004.2,2004.1,1.3601]
[1743014942058,2.35278,2004.2,2002.9,2.5829194]
[1743014942059,5.70242,2004.1,2002.9,2.5829194]
[1743014942363,0.99823,2003.3,2003.2,1.3433]
[1743014942557,9.01176,2003.8,2003.3,0.99819]
[1743014942763,1.00563148,2003.5,2003.3,0.9982]
[1743014942958,1.00563148,2003.5,2003.2,1.3433]
[1743014943163,3.21528148,2003.5,2003.2,1.3433]
[1743014943462,0.00748148,2003.5,2003.4,0.99818]
[1743014944362,0.00748148,2003.5,2003.4,4.20598]
[1743014945059,1.00561148,2003.5,2003.4,4.20598]
[1743014945259,0.00748148,2003.5,2003.4,4.20598]
[1743014945759,0.00748148,2003.5,2003.4,6.70598]
[1743014945961,4.5974,2004.1,2003.8,0.99795]
[1743014946157,0.99792,2004.0,2003.9,1.68452]
[1743014946464,0.99792,2004.0,2003.9,0.6866]
[1743014946654,3.2078,2004.1,2003.9,0.6866]
[1743014946854,0.99788,2004.0,2003.9,0.6866]
[1743014947458,0.99793,2003.9,2003.8,0.00748148]
[1743014948366,2.33533,2003.9,2003.8,0.00748148]
[1743014948567,0.99793,2003.9,2003.8,0.00748148]
[1743014949259,0.99791,2004.0,2003.9,0.99793]
[1743014949461,4.5865,2004.1,2003.8,0.00748148]
[1743014949662,0.99793,2003.9,2003.8,1.00542148]
[1743014950063,0.99793,2003.9,2003.8,1.00543148]
[1743014950267,2.37661,2004.0,2003.9,0.99793]
[1743014950461,0.99793,2003.9,2003.8,0.00748148]
[1743014950663,3.76133,2003.9,2003.8,0.00748148]
[1743014952870,3.08223,2003.9,2003.8,0.00748148]
[1743014953065,2.37663,2003.9,2003.8,0.71958148]
[1743014953471,0.99792,2004.0,2003.9,0.99791]
[1743014953666,0.99793,2003.9,2003.8,1.71753148]
[1743014954170,0.99793,2003.9,2003.8,0.00748148]
[1743014954673,0.99793,2003.9,2003.8,1.00546148]
[1743014955869,0.99793,2003.9,2003.8,0.00748148]
[1743014959571,0.99793,2003.9,2003.8,1.43858148]
[1743014959770,0.99793,2003.9,2003.8,2.43656148]
[1743014960174,0.99793,2003.9,2003.8,1.43858148]
[1743014961172,0.99784,2004.1,2004.0,0.99788]
[1743014961375,1.00530148,2004.2,2004.1,0.99783]
[1743014961774,0.99788,2004.1,2004.0,0.99784]
[1743014961969,2.32938,2004.1,2004.0,2.35834]
[1743014962277,0.99783,2004.1,2004.0,2.35834]
[1743014963176,2.32933,2004.1,2004.0,2.35834]
[1743014965377,5.53713,2004.1,2004.0,1.3605]
[1743014965579,0.99793,2003.9,2003.8,4.31746148]
[1743014966081,0.99793,2003.9,2003.8,3.31948148]
[1743014966274,0.99793,2003.9,2003.8,4.31746148]
[1743014966880,0.99793,2003.9,2003.8,5.73286148]
[1743014967684,2.39033,2003.9,2003.8,5.73286148]
[1743014969687,0.99793,2004.0,2003.9,0.99788]
[1743014969876,2.39033,2004.0,2003.9,2.31388]
[1743014970077,4.20567,2004.1,2004.0,0.99788]
[1743014970381,5.59807,2004.1,2004.0,2.31388]
[1743014971085,5.59807,2004.1,2004.0,1.316]
[1743014971670,5.59807,2004.1,2004.0,2.31388]
[1743014972288,5.59807,2004.1,2004.0,1.316]
[1743014972472,5.59807,2004.1,2004.0,2.31388]
[1743014972677,5.59807,2004.1,2004.0,1.316]
[1743014978191,5.59807,2004.1,2003.8,3.99088148]
[1743014978192,0.99793,2003.9,2003.8,0.67888148]
[1743014978382,0.99793,2003.9,2003.8,0.00748148]
[1743014978884,1.64503,2003.9,2003.8,0.00748148]
[1743014982089,0.99793,2003.9,2003.8,2.32236148]
[1743014982289,0.99793,2003.9,2003.8,5.61836148]
[1743014982484,2.30742,2004.0,2003.9,0.99793]
[1743014982785,2.30742,2004.0,2003.9,2.31483]
[1743014982986,4.20567,2004.1,2004.0,0.99788]
[1743014983189,5.51187,2004.1,2004.0,2.30768]
[1743014986187,3.2078,2004.1,2004.0,2.30768]
[1743014986390,0.00748148,2004.2,2004.1,0.99783]
[1743014986587,0.00748148,2004.2,2004.1,6.38123]
[1743014987192,1.70634,2004.6,2004.3,0.99773]
[1743014987384,2.32434,2004.6,2004.5,0.99763]
[1743014987783,1.3267,2004.6,2004.5,2.43023]
[1743014987989,0.99757,2004.7,2004.6,0.99758]
[1743014988190,0.99757,2004.7,2004.6,2.43018]
[1743014988895,0.99753,2004.7,2004.6,2.43015]
[1743014989288,2.41093,2004.7,2004.6,2.43015]
[1743014989697,4.20531,2004.8,2004.7,0.99753]
[1743014989892,1.42088148,2004.9,2004.8,0.99748]
[1743014990098,1.00491148,2004.9,2004.8,3.71778]
[1743014990296,2.41831148,2004.9,2004.8,1.356]
[1743014990493,0.99748,2004.8,2004.7,3.3]
[1743014990698,2.41088,2004.8,2004.7,5.65353]
[1743014990895,1.4134,2004.8,2004.7,5.65353]
[1743014991191,2.41088,2004.8,2004.7,5.65353]
[1743014991593,1.00494148,2004.9,2004.8,0.99748]
[1743014991794,1.00494148,2004.9,2004.8,2.35348]
[1743014992188,2.42184148,2004.9,2004.8,2.35348]
[1743014993595,2.42184148,2004.9,2004.8,1.356]
[1743014993799,2.42184148,2004.9,2004.5,1.3643]
[1743014993800,0.99758,2004.6,2004.5,1.3643]
[1743014994098,0.99758,2004.6,2004.5,4.6877]
[1743014994302,0.99758,2004.6,2004.5,5.68533]
[1743014994597,0.99758,2004.6,2004.5,4.6877]
[1743014995101,2.36898,2004.6,2004.5,4.6877]
[1743014995494,0.99773,2004.3,2004.2,57.29774]
[1743014995799,2.49417,2004.5,2004.3,0.9977]
[1743014995800,0.99772,2004.4,2004.3,0.9977]
[1743014996805,0.99772,2004.4,2004.3,4.5966]
[1743014997101,0.99772,2004.4,2004.3,5.59433]
[1743014997695,2.41376,2004.5,2004.4,0.99768]
[1743014997894,2.41376,2004.5,2004.4,2.29428]
[1743014998099,2.41376,2004.5,2004.4,2.94588]
[1743014998597,0.99766,2004.5,2004.4,2.94588]
[1743014998797,0.99766,2004.5,2004.4,3.60078]
[1743014998996,2.96273,2004.6,2004.5,0.99763]
[1743014999201,0.99756,2004.7,2004.6,0.99753]
[1743014999403,2.29426,2004.7,2004.6,4.29453]
[1743015000397,0.9975,2004.8,2004.7,0.99748]
[1743015000600,2.2942,2004.8,2004.7,2.43168]
[1743015000901,1.00495148,2004.9,2004.8,0.99748]
[1743015001099,1.00491148,2004.9,2004.8,2.37108]
[1743015001600,2.32391148,2004.9,2004.8,3.74618]
[1743015002391,0.00748148,2004.9,2004.8,3.74618]
[1743015002596,0.99727,2005.3,2005.2,0.99724]
[1743015002895,0.99727,2005.3,2005.2,4.29624]
[1743015002896,2.31627,2005.3,2005.2,4.29624]
[1743015003195,0.99722,2005.4,2005.3,0.99723]
[1743015003393,0.676,2005.6,2005.2,5.79213]
[1743015003601,0.99715,2005.5,2005.4,0.99713]
[1743015003803,0.99715,2005.5,2005.4,2.37223]
[1743015004002,2.99960148,2005.6,2005.5,0.99713]
[1743015004204,2.99960148,2005.6,2005.5,5.63893]
[1743015004799,1.00460148,2005.6,2005.5,5.63893]
[1743015005007,0.00748148,2005.6,2005.5,5.63893]
[1743015006604,1.00456148,2005.6,2005.5,5.63893]
[1743015007606,0.00748148,2005.6,2005.5,5.63893]
[1743015008405,1.37478148,2005.6,2005.5,5.63893]
[1743015008708,2.37186148,2005.6,2005.5,5.63893]
[1743015009008,0.00748148,2005.6,2005.5,5.63893]
[1743015009907,1.00456148,2005.6,2005.5,4.6348]
[1743015010107,2.37186148,2005.6,2005.5,4.6348]
[1743015010513,3.05646148,2005.6,2005.5,4.6348]
[1743015011513,3.05646148,2005.6,2005.5,3.295]
[1743015011711,0.99718,2005.4,2005.3,1.3565]
[1743015011912,0.99718,2005.4,2005.3,4.6565]
[1743015012109,0.99718,2005.4,2005.3,5.65373]
[1743015013112,0.99718,2005.4,2005.3,1.3565]
[1743015013409,0.99718,2005.4,2005.3,5.65173]
[1743015013615,0.99718,2005.4,2005.3,4.6545]
[1743015014012,0.99718,2005.4,2005.2,3.30548148]
[1743015014013,0.99723,2005.3,2005.2,3.30548148]
[1743015014208,2.97353,2005.3,2005.2,0.00748148]
[1743015014510,0.99738,2005.0,2004.9,3.301]
[1743015014716,0.99743,2004.9,2004.8,2.31344]
[1743015015417,0.99743,2004.9,2004.8,1.316]